fUST/lending_fUST_20240506
["ID","MTS","AMOUNT","RATE_DAILY","PERIOD"]
[326478623,1714983053889,-500.0,0.00019178,2]
[326478624,1714983053898,-500.0,0.00019178,2]
[326478625,1714983053907,-500.0,0.00019178,2]
[326478626,1714983053916,-500.0,0.00019178,2]
[326478627,1714983053926,-601.59,0.00019178,2]
[326478628,1714983053935,-500.0,0.00019178,2]
[326478629,1714983053944,-500.0,0.00019178,2]
[326478630,1714983053953,-500.0,0.00019178,2]
[326478631,1714983053964,-500.63250712,0.00019178,2]
[326478632,1714983053975,-1347.51,0.00019178,2]
[326478633,1714983053984,-500.0,0.00019178,2]
[326478634,1714983053993,-532.62,0.00019178,2]
[326478635,1714983054002,-969.3,0.00019178,2]
[326478636,1714983054011,-500.0,0.00019178,2]
[326478637,1714983054021,-500.0,0.00019178,2]
[326478638,1714983054030,-500.0,0.00019178,2]
[326478639,1714983054040,-500.0,0.00019178,2]
[326478640,1714983054050,-500.0,0.00019178,2]
[326478641,1714983054059,-500.0,0.00019178,2]
[326478642,1714983054068,-500.0,0.00019178,2]
[326478643,1714983054077,-500.0,0.00019178,2]
[326478644,1714983054086,-500.0,0.00019178,2]
[326478645,1714983054097,-500.0,0.00019178,2]
[326478646,1714983054106,-500.0,0.00019178,2]
[326478647,1714983054115,-503.4314979,0.00019178,2]
[326478648,1714983054125,-2507.62,0.00019178,2]
[326478649,1714983054134,-634.17,0.00019178,2]
[326478650,1714983054143,-677.82,0.00019178,2]
[326478651,1714983054153,-1000.0,0.00019178,2]
[326478652,1714983054162,-500.0,0.00019178,2]
[326478653,1714983054172,-947.77,0.00019178,2]
[326478654,1714983054183,-500.0,0.00019178,2]
[326478655,1714983054192,-500.0,0.00019178,2]
[326478656,1714983054202,-500.0,0.00019178,2]
[326478657,1714983054212,-500.0,0.00019178,2]
[326478658,1714983054222,-500.0,0.00019178,2]
[326478659,1714983054232,-505.97399745,0.00019178,2]
[326478660,1714983054246,-500.0,0.00019178,2]
[326478661,1714983054256,-500.0,0.00019178,2]
[326478662,1714983054266,-514.95853855,0.00019178,2]
[326478663,1714983054276,-500.0,0.00019178,2]
[326478664,1714983054287,-500.0,0.00019178,2]
[326478665,1714983054297,-464.24343355,0.00019178,2]
[326478666,1714983054306,-500.0,0.00019178,2]
[326478667,1714983054317,-12178.3,0.00019178,2]
[326478668,1714983054327,-500.0,0.00019178,2]
[326478669,1714983054336,-500.0,0.00019178,2]
[326478670,1714983054347,-500.0,0.00019178,2]
[326478671,1714983054358,-500.0,0.00019178,2]
[326478672,1714983054368,-862.55,0.00019178,2]
[326478673,1714983054378,-500.0,0.00019178,2]
[326478674,1714983054388,-500.0,0.00019178,2]
[326478675,1714983054398,-500.0,0.00019178,2]
[326478676,1714983054407,-500.0,0.00019178,2]
[326478677,1714983054418,-511.52991443,0.00019178,2]
[326478678,1714983054427,-500.0,0.00019178,2]
[326478679,1714983054437,-502.96621992,0.00019178,2]
[326478680,1714983054446,-782.2,0.00019178,2]
[326478681,1714983054456,-782.2,0.00019178,2]
[326478682,1714983054465,-500.0,0.00019178,2]
[326478683,1714983054479,-500.0,0.00019178,2]
[326478684,1714983054488,-782.2,0.00019178,2]
[326478685,1714983054499,-782.2,0.00019178,2]
[326478686,1714983054508,-782.2,0.00019178,2]
[326478687,1714983054518,-500.0,0.00019178,2]
[326478688,1714983054528,-782.2,0.00019178,2]
[326478689,1714983054542,-782.2,0.00019178,2]
[326478690,1714983054554,-782.2,0.00019178,2]
[326478691,1714983054563,-782.2,0.00019178,2]
[326478692,1714983054572,-782.2,0.00019178,2]
[326478693,1714983054582,-782.2,0.00019178,2]
[326478694,1714983054591,-782.2,0.00019178,2]
[326478695,1714983054605,-782.2,0.00019178,2]
[326478696,1714983054614,-500.0,0.00019178,2]
[326478697,1714983054623,-782.2,0.00019178,2]
[326478698,1714983054633,-782.2,0.00019178,2]
[326478699,1714983054642,-782.2,0.00019178,2]
[326478700,1714983054652,-782.2,0.00019178,2]
[326478701,1714983054661,-782.2,0.00019178,2]
[326478702,1714983054671,-500.0,0.00019178,2]
[326478703,1714983054681,-782.2,0.00019178,2]
[326478704,1714983054690,-782.2,0.00019178,2]
[326478705,1714983054700,-782.2,0.00019178,2]
[326478706,1714983054709,-782.2,0.00019178,2]
[326478707,1714983054718,-782.2,0.00019178,2]
[326478708,1714983054728,-782.43366121,0.00019178,2]
[326478709,1714983054738,-163.94559106,0.00019178,2]
[326478710,1714983054747,-501.69764567,0.00019178,2]
[326478711,1714983054757,-1100.18,0.00019178,2]
[326478712,1714983054766,-500.0,0.00019178,2]
[326478713,1714983054775,-500.0,0.00019178,2]
[326478714,1714983054785,-500.0,0.00019178,2]
[326478715,1714983054794,-500.0,0.00019178,2]
[326478716,1714983054804,-500.0,0.00019178,2]
[326478717,1714983054813,-500.0,0.00019178,2]
[326478718,1714983054822,-1406.26,0.00019178,2]
[326478719,1714983054832,-500.0,0.00019178,2]
[326478720,1714983054841,-774.51,0.00019178,2]
[326478721,1714983054853,-500.0,0.00019178,2]
[326478722,1714983054863,-500.0,0.00019178,2]
[326478723,1714983054872,-500.0,0.00019178,2]
[326478724,1714983054882,-500.0,0.00019178,2]
[326478725,1714983054891,-500.0,0.00019178,2]
[326478726,1714983054900,-500.0,0.00019178,2]
[326478727,1714983054911,-500.0,0.00019178,2]
[326478728,1714983054922,-500.0,0.00019178,2]
[326478729,1714983054931,-500.0,0.00019178,2]
[326478730,1714983054940,-500.0,0.00019178,2]
[326478731,1714983054950,-500.0,0.00019178,2]
[326478732,1714983054959,-500.0,0.00019178,2]
[326478733,1714983054968,-500.0,0.00019178,2]
[326478734,1714983054978,-1759.95,0.00019178,2]
[326478735,1714983054988,-500.0,0.00019178,2]
[326478736,1714983054997,-500.0,0.00019178,2]
[326478737,1714983055006,-500.0,0.00019178,2]
[326478738,1714983055117,-500.0,0.00019178,2]
[326478739,1714983055135,-500.0,0.00019178,2]
[326478740,1714983055149,-500.0,0.00019178,2]
[326478741,1714983055158,-500.0,0.00019178,2]
[326478742,1714983055168,-500.0,0.00019178,2]
[326478743,1714983055177,-500.0,0.00019178,2]
[326478744,1714983055187,-500.0,0.00019178,2]
[326478745,1714983055197,-500.0,0.00019178,2]
[326478746,1714983055206,-506.78556213,0.00019178,2]
[326478747,1714983055215,-500.0,0.00019178,2]
[326478748,1714983055225,-654.25,0.00019178,2]
[326478749,1714983055237,-500.0,0.00019178,2]
[326478750,1714983055247,-500.0,0.00019178,2]
[326478751,1714983055256,-3144.12,0.00019178,2]
[326478752,1714983055266,-500.0,0.00019178,2]
[326478753,1714983055275,-500.0,0.00019178,2]
[326478754,1714983055285,-500.0,0.00019178,2]
[326478755,1714983055294,-759.79,0.00019178,2]
[326478756,1714983055304,-500.0,0.00019178,2]
[326478757,1714983055313,-3778.47,0.00019178,2]
[326478758,1714983055324,-532.53,0.00019178,2]
[326478759,1714983055334,-1238.48,0.00019178,2]
[326478760,1714983055343,-500.0,0.00019178,2]
[326478761,1714983055354,-1171.39,0.00019178,2]
[326478762,1714983055364,-501.32857343,0.00019178,2]
[326478763,1714983055373,-557.66,0.00019178,2]
[326478764,1714983055382,-504.7933288,0.00019178,2]
[326478765,1714983055391,-1167.37,0.00019178,2]
[326478766,1714983055401,-500.0,0.00019178,2]
[326478767,1714983055410,-500.0,0.00019178,2]
[326478768,1714983055420,-500.0,0.00019178,2]
[326478769,1714983055429,-717.91,0.00019178,2]
[326478770,1714983055439,-500.0,0.00019178,2]
[326478771,1714983055448,-500.0,0.00019178,2]
[326478772,1714983055458,-57411.25,0.00019178,2]
[326478773,1714983055468,-500.0,0.00019178,2]
[326478774,1714983055477,-15161.87,0.00019178,2]
[326478775,1714983055486,-750.06649792,0.00019178,2]
[326478776,1714983105678,1080.23623527,9.999e-05,2]
[326478777,1714983167628,1042.71154476,9.999e-05,2]
[326478778,1714983212898,1464.86926182,0.0001,2]
[326478845,1714983489873,154.70605849,9.999e-05,2]
[326478846,1714983500871,154.70605849,0.0001,2]
[326478847,1714983510100,250.0,0.00016738,2]
[326478848,1714983518928,252.67627649,0.0001,2]
[326478849,1714983546632,165.845338,0.0001589,2]
[326478850,1714983605154,769.97551352,0.0001,2]
[326478851,1714983700983,763.27610829,9.999e-05,2]
[326478852,1714983711005,465.09462597,9.999e-05,2]
[326478853,1714983726462,816.50766108,9.999e-05,2]
[326478854,1714983752548,284.29807878,9.999e-05,2]
[326478855,1714983778435,1042.71154476,9.999e-05,2]
[326478856,1714983862476,154.7215013,0.000137,2]
[326478857,1714983993189,-1000.0,0.00017245,2]
[326478858,1714984030729,24900.0,0.00016687,2]
[326478859,1714984072208,154.7215013,9.999e-05,2]
[326478860,1714984097364,671.02480693,0.00016687,2]
[326478861,1714984099553,159.6498128,0.00016687,2]
[326478862,1714984142694,1493.3459025,9.999e-05,2]
[326478977,1714984239462,-816.50766108,0.00017142,2]
[326478979,1714984239473,-465.09462597,0.00017143,2]
[326478982,1714984239483,-163.73827254,0.00017144,2]
[326478984,1714984239493,-15688.54119062,0.00017243,2]
[326478986,1714984239503,-15183.13745995,0.00017244,2]
[326478988,1714984239513,-3455.83254005,0.00017244,2]
[326478990,1714984239526,-3455.83254005,0.00017244,2]
[326478992,1714984239535,-725.69484039,0.00017258,2]
[326478993,1714984239545,-154.7215013,0.00017408,2]
[326478995,1714984239554,-250.0,0.00017409,2]
[326478997,1714984239566,-254.3958981,0.00017423,2]
[326478999,1714984239582,-497.26802,0.00017469,2]
[326479001,1714984239592,-163.73827253,0.00017756,2]
[326479003,1714984239601,-154.7215013,0.00018116,2]
[326479005,1714984239611,-233.40204133,0.00018117,2]
[326479006,1714984239622,-2539.59122535,0.00018217,2]
[326479008,1714984239632,-154.70605849,0.00018217,2]
[326479010,1714984239641,-233.4020413,0.00018357,2]
[326479012,1714984239652,-163.73827253,0.00018369,2]
[326479014,1714984239662,-604.49379352,0.000185,2]
[326479016,1714984239672,-233.4020413,0.00018598,2]
[326479018,1714984239682,-150.0,0.0001868,3]
[326479020,1714984239691,-150.0,0.00018811,3]
[326479022,1714984239701,-233.4020413,0.00018838,2]
[326479024,1714984239711,-1475.26756255,0.000189,2]
[326479026,1714984239721,-150.0,0.00018942,3]
[326479028,1714984239731,-153.0,0.00018947,2]
[326479030,1714984239740,-163.73827253,0.00018981,2]
[326479031,1714984239750,-174.16453181,0.00018986,2]
[326479033,1714984239760,-10090.60901995,0.00019,2]
[326479035,1714984239772,-7946.92894707,0.00019,2]
[326479037,1714984239782,-5000.0,0.00019,2]
[326479038,1714984239792,-193.82,0.00019068,3]
[326479040,1714984239802,-1844.68,0.00019068,3]
[326479042,1714984239811,-922.34,0.00019068,3]
[326479044,1714984239821,-461.17,0.00019068,3]
[326479045,1714984239830,-230.58,0.00019068,3]
[326479047,1714984239840,-691.78,0.00019068,3]
[326479048,1714984239850,-150.0,0.00019073,3]
[326479049,1714984239859,-554.78993311,0.00019078,2]
[326479050,1714984239869,-233.4020413,0.00019078,2]
[326479051,1714984239878,-55555.0,0.00019078,2]
[326479052,1714984239888,-2000.0,0.00019078,2]
[326479054,1714984239897,-554.78993307,0.00019081,2]
[326479056,1714984239908,-554.78993307,0.00019084,2]
[326479057,1714984239917,-554.78993307,0.00019087,2]
[326479058,1714984239927,-554.78993307,0.00019091,2]
[326479059,1714984239938,-554.78993307,0.00019094,2]
[326479060,1714984239949,-554.78993307,0.00019097,2]
[326479061,1714984239960,-1544.12278652,0.000191,2]
[326479062,1714984239970,-554.78993307,0.000191,2]
[326479063,1714984239981,-493.0,0.00019132,2]
[326479064,1714984239990,-150.0,0.00019132,2]
[326479065,1714984240000,-583.90234602,0.00019176,2]
[326479066,1714984240010,-6322.88294679,0.00019176,2]
[326479067,1714984240023,-154.90978878,0.00019176,2]
[326479068,1714984240034,-155.43184006,0.00019176,2]
[326479069,1714984240044,-12330.60727855,0.00019176,2]
[326479070,1714984240054,-312.97578303,0.00019176,2]
[326479071,1714984240064,-186.45353007,0.00019176,2]
[326479072,1714984240074,-475.32221455,0.00019176,2]
[326479073,1714984240084,-240.0861284,0.00019176,2]
[326479074,1714984240095,-488.60277858,0.00019176,2]
[326479075,1714984240106,-1092.31080328,0.00019176,2]
[326479076,1714984240116,-550.39319475,0.00019176,2]
[326479077,1714984240127,-1579.16819977,0.00019176,2]
[326479078,1714984240137,-292.03540589,0.00019176,2]
[326479079,1714984240147,-1781.9716408,0.00019176,2]
[326479080,1714984240158,-154.80290316,0.00019176,2]
[326479081,1714984240169,-1893.83301406,0.00019176,2]
[326479082,1714984240180,-3054.9715797,0.00019176,2]
[326479083,1714984240190,-285.44606875,0.00019176,2]
[326479084,1714984240200,-415.66116125,0.00019176,2]
[326479085,1714984240211,-155.62603207,0.00019176,2]
[326479086,1714984240221,-164.99948992,0.00019176,2]
[326479087,1714984240232,-1493.3459025,0.00019176,2]
[326479088,1714984240242,-1623.43487535,0.00019176,2]
[326479089,1714984240253,-3134.48557274,0.00019177,7]
[326479090,1714984240263,-500.0,0.00019178,2]
[326479091,1714984240277,-500.0,0.00019178,2]
[326479092,1714984240288,-500.0,0.00019178,2]
[326479093,1714984240299,-500.0,0.00019178,2]
[326479094,1714984240310,-500.0,0.00019178,2]
[326479095,1714984240323,-500.0,0.00019178,2]
[326479096,1714984240334,-500.0,0.00019178,2]
[326479097,1714984240345,-500.0,0.00019178,2]
[326479098,1714984240356,-500.0,0.00019178,2]
[326479099,1714984240367,-500.0,0.00019178,2]
[326479100,1714984240377,-500.0,0.00019178,2]
[326479101,1714984240387,-500.0,0.00019178,2]
[326479102,1714984240397,-500.0,0.00019178,2]
[326479103,1714984240408,-500.0,0.00019178,2]
[326479104,1714984240422,-500.0,0.00019178,2]
[326479105,1714984240434,-500.0,0.00019178,2]
[326479106,1714984240444,-500.0,0.00019178,2]
[326479107,1714984240455,-500.0,0.00019178,2]
[326479108,1714984240465,-500.0,0.00019178,2]
[326479109,1714984240475,-500.0,0.00019178,2]
[326479110,1714984240485,-500.0,0.00019178,2]
[326479111,1714984240495,-500.0,0.00019178,2]
[326479112,1714984240506,-500.0,0.00019178,2]
[326479113,1714984240516,-500.0,0.00019178,2]
[326479114,1714984240529,-500.0,0.00019178,2]
[326479115,1714984240540,-500.0,0.00019178,2]
[326479116,1714984240550,-500.0,0.00019178,2]
[326479117,1714984240560,-500.0,0.00019178,2]
[326479118,1714984240574,-500.0,0.00019178,2]
[326479119,1714984240586,-500.0,0.00019178,2]
[326479120,1714984240597,-500.0,0.00019178,2]
[326479121,1714984240607,-500.0,0.00019178,2]
[326479122,1714984240619,-500.0,0.00019178,2]
[326479123,1714984240629,-500.0,0.00019178,2]
[326479124,1714984240639,-500.0,0.00019178,2]
[326479125,1714984240652,-500.0,0.00019178,2]
[326479126,1714984240663,-500.0,0.00019178,2]
[326479127,1714984240673,-500.0,0.00019178,2]
[326479128,1714984240683,-500.0,0.00019178,2]
[326479129,1714984240695,-500.0,0.00019178,2]
[326479130,1714984240706,-500.0,0.00019178,2]
[326479131,1714984240718,-500.0,0.00019178,2]
[326479132,1714984240728,-500.0,0.00019178,2]
[326479133,1714984240740,-500.0,0.00019178,2]
[326479134,1714984240751,-500.0,0.00019178,2]
[326479135,1714984240762,-500.0,0.00019178,2]
[326479136,1714984240774,-500.0,0.00019178,2]
[326479137,1714984240784,-500.0,0.00019178,2]
[326479138,1714984240795,-500.0,0.00019178,2]
[326479139,1714984240805,-500.0,0.00019178,2]
[326479140,1714984240815,-500.0,0.00019178,2]
[326479141,1714984240824,-500.0,0.00019178,2]
[326479142,1714984240834,-500.0,0.00019178,2]
[326479143,1714984240844,-500.0,0.00019178,2]
[326479144,1714984240854,-573.01964891,0.00019178,2]
[326479145,1714984240865,-500.0,0.00019178,2]
[326479146,1714984240875,-500.0,0.00019178,2]
[326479147,1714984240885,-500.0,0.00019178,2]
[326479148,1714984240895,-500.0,0.00019178,2]
[326479149,1714984240906,-500.0,0.00019178,2]
[326479150,1714984240916,-676.53,0.00019178,2]
[326479151,1714984240926,-500.0,0.00019178,2]
[326479152,1714984240936,-1166.37,0.00019178,2]
[326479153,1714984240946,-629.08,0.00019178,2]
[326479154,1714984240956,-500.0,0.00019178,2]
[326479155,1714984240966,-338.96808894,0.00019178,2]
[326479156,1714984240976,-500.0,0.00019178,2]
[326479157,1714984240986,-500.0,0.00019178,2]
[326479158,1714984240996,-500.0,0.00019178,2]
[326479159,1714984241007,-500.0,0.00019178,2]
[326479160,1714984241017,-978.45,0.00019178,2]
[326479161,1714984241029,-500.0,0.00019178,2]
[326479162,1714984241039,-500.0,0.00019178,2]
[326479163,1714984241048,-630.35084847,0.00019178,2]
[326479164,1714984241057,-500.0,0.00019178,2]
[326479165,1714984241068,-500.0,0.00019178,2]
[326479166,1714984241078,-536.66307071,0.00019178,2]
[326479167,1714984241088,-500.0,0.00019178,2]
[326479168,1714984241099,-500.0,0.00019178,2]
[326479169,1714984241109,-500.0,0.00019178,2]
[326479170,1714984241119,-500.0,0.00019178,2]
[326479171,1714984241129,-500.0,0.00019178,2]
[326479172,1714984241139,-500.0,0.00019178,2]
[326479173,1714984241149,-646.35,0.00019178,2]
[326479174,1714984241159,-500.0,0.00019178,2]
[326479175,1714984241169,-500.0,0.00019178,2]
[326479176,1714984241179,-500.0,0.00019178,2]
[326479177,1714984241190,-1840.72,0.00019178,2]
[326479178,1714984241201,-761.67,0.00019178,2]
[326479179,1714984241211,-510.64,0.00019178,2]
[326479180,1714984241221,-500.0,0.00019178,2]
[326479181,1714984241231,-500.0,0.00019178,2]
[326479182,1714984241241,-500.0,0.00019178,2]
[326479183,1714984241251,-500.0,0.00019178,2]
[326479184,1714984241260,-500.0,0.00019178,2]
[326479185,1714984241273,-500.0,0.00019178,2]
[326479186,1714984241284,-500.0,0.00019178,2]
[326479187,1714984241294,-500.0,0.00019178,2]
[326479188,1714984241304,-500.0,0.00019178,2]
[326479189,1714984241314,-500.0,0.00019178,2]
[326479190,1714984241325,-500.0,0.00019178,2]
[326479191,1714984241335,-500.0,0.00019178,2]
[326479192,1714984241345,-405.95651343,0.00019178,2]
[326479193,1714984241354,-500.0,0.00019178,2]
[326479194,1714984241366,-500.15936496,0.00019178,2]
[326479195,1714984241375,-500.0,0.00019178,2]
[326479196,1714984241385,-500.0,0.00019178,2]
[326479197,1714984241395,-500.0,0.00019178,2]
[326479198,1714984241404,-500.0,0.00019178,2]
[326479199,1714984241414,-500.0,0.00019178,2]
[326479200,1714984241423,-500.0,0.00019178,2]
[326479201,1714984241432,-507.50685361,0.00019178,2]
[326479202,1714984241442,-500.0,0.00019178,2]
[326479203,1714984241452,-500.0,0.00019178,2]
[326479204,1714984241462,-500.0,0.00019178,2]
[326479205,1714984241471,-626.34,0.00019178,2]
[326479206,1714984241481,-500.0,0.00019178,2]
[326479207,1714984241491,-500.0,0.00019178,2]
[326479208,1714984241501,-501.33807771,0.00019178,2]
[326479209,1714984241510,-500.0,0.00019178,2]
[326479210,1714984241521,-241.43236714,0.00019178,2]
[326479211,1714984241531,-500.0,0.00019178,2]
[326479212,1714984241542,-500.0,0.00019178,2]
[326479213,1714984241553,-500.0,0.00019178,2]
[326479214,1714984241562,-500.0,0.00019178,2]
[326479215,1714984241575,-500.0,0.00019178,2]
[326479216,1714984241585,-500.0,0.00019178,2]
[326479217,1714984241595,-500.0,0.00019178,2]
[326479218,1714984241605,-500.0,0.00019178,2]
[326479219,1714984241615,-500.0,0.00019178,2]
[326479220,1714984241626,-500.0,0.00019178,2]
[326479221,1714984241635,-1000.0,0.00019178,2]
[326479222,1714984241645,-500.0,0.00019178,2]
[326479223,1714984241657,-500.0,0.00019178,2]
[326479224,1714984241668,-500.0,0.00019178,2]
[326479225,1714984241680,-567.52734769,0.00019178,2]
[326479226,1714984241690,-500.0,0.00019178,2]
[326479227,1714984241701,-500.0,0.00019178,2]
[326479228,1714984241712,-500.0,0.00019178,2]
[326479229,1714984241722,-500.0,0.00019178,2]
[326479230,1714984241733,-500.0,0.00019178,2]
[326479231,1714984241743,-500.0,0.00019178,2]
[326479232,1714984241754,-500.0,0.00019178,2]
[326479233,1714984241764,-509.38614961,0.00019178,2]
[326479234,1714984241776,-500.45040515,0.00019178,2]
[326479235,1714984241786,-833.36,0.00019178,2]
[326479236,1714984241796,-500.0,0.00019178,2]
[326479237,1714984241806,-500.0,0.00019178,2]
[326479238,1714984241815,-500.0,0.00019178,2]
[326479239,1714984241825,-500.0,0.00019178,2]
[326479240,1714984241834,-843.41,0.00019178,2]
[326479241,1714984241844,-500.0,0.00019178,2]
[326479242,1714984241854,-500.0,0.00019178,2]
[326479243,1714984241864,-500.0,0.00019178,2]
[326479244,1714984241874,-603.62,0.00019178,2]
[326479245,1714984241884,-500.0,0.00019178,2]
[326479246,1714984241895,-648.0,0.00019178,2]
[326479247,1714984241907,-500.0,0.00019178,2]
[326479248,1714984241917,-500.0,0.00019178,2]
[326479249,1714984241927,-500.0,0.00019178,2]
[326479250,1714984241937,-329.03531632,0.00019178,2]
[326479251,1714984241946,-500.0,0.00019178,2]
[326479252,1714984241956,-500.0,0.00019178,2]
[326479253,1714984241966,-500.0,0.00019178,2]
[326479254,1714984241989,-500.21043722,0.00019178,2]
[326479255,1714984242002,-500.0,0.00019178,2]
[326479256,1714984242013,-1208.99,0.00019178,2]
[326479257,1714984242029,-500.0,0.00019178,2]
[326479258,1714984242040,-500.0,0.00019178,2]
[326479259,1714984242051,-500.0,0.00019178,2]
[326479260,1714984242061,-500.0,0.00019178,2]
[326479261,1714984242072,-500.0,0.00019178,2]
[326479262,1714984242084,-500.0,0.00019178,2]
[326479263,1714984242095,-500.0,0.00019178,2]
[326479264,1714984242105,-500.0,0.00019178,2]
[326479265,1714984242115,-500.0,0.00019178,2]
[326479266,1714984242126,-500.0,0.00019178,2]
[326479267,1714984242136,-500.0,0.00019178,2]
[326479268,1714984242147,-500.0,0.00019178,2]
[326479269,1714984242157,-500.0,0.00019178,2]
[326479270,1714984242168,-500.0,0.00019178,2]
[326479271,1714984242178,-500.0,0.00019178,2]
[326479272,1714984242188,-500.0,0.00019178,2]
[326479273,1714984242198,-500.0,0.00019178,2]
[326479274,1714984242209,-500.0,0.00019178,2]
[326479275,1714984242219,-500.0,0.00019178,2]
[326479276,1714984242229,-500.0,0.00019178,2]
[326479277,1714984242239,-500.0,0.00019178,2]
[326479278,1714984242250,-500.0,0.00019178,2]
[326479279,1714984242261,-500.0,0.00019178,2]
[326479280,1714984242273,-500.0,0.00019178,2]
[326479281,1714984242283,-500.0,0.00019178,2]
[326479282,1714984242294,-500.0,0.00019178,2]
[326479283,1714984242305,-500.0,0.00019178,2]
[326479284,1714984242317,-503.18104818,0.00019178,2]
[326479285,1714984242328,-500.0,0.00019178,2]
[326479286,1714984242338,-500.0,0.00019178,2]
[326479287,1714984242348,-500.0,0.00019178,2]
[326479288,1714984242359,-598.99026672,0.00019178,2]
[326479289,1714984242370,-1686.62,0.00019178,2]
[326479290,1714984242384,-500.0,0.00019178,2]
[326479291,1714984242394,-500.0,0.00019178,2]
[326479292,1714984242405,-500.0,0.00019178,2]
[326479293,1714984242416,-500.0,0.00019178,2]
[326479294,1714984242426,-500.0,0.00019178,2]
[326479295,1714984242436,-509.95243681,0.00019178,2]
[326479296,1714984242447,-500.0,0.00019178,2]
[326479297,1714984242457,-641.14582168,0.00019178,2]
[326479298,1714984242468,-500.0,0.00019178,2]
[326479299,1714984242679,-500.0,0.00019178,2]
[326479300,1714984242691,-500.0,0.00019178,2]
[326479301,1714984242701,-500.49727637,0.00019178,2]
[326479302,1714984242711,-500.0,0.00019178,2]
[326479303,1714984242720,-500.0,0.00019178,2]
[326479304,1714984242730,-500.0,0.00019178,2]
[326479305,1714984242739,-500.0,0.00019178,2]
[326479306,1714984242749,-500.0,0.00019178,2]
[326479307,1714984242758,-500.0,0.00019178,2]
[326479308,1714984242768,-500.0,0.00019178,2]
[326479309,1714984242779,-1186.88,0.00019178,2]
[326479310,1714984242789,-642.35,0.00019178,2]
[326479311,1714984242798,-500.0,0.00019178,2]
[326479312,1714984242808,-100.33757832,0.00019178,2]
[326479313,1714984243048,-399.66242168,0.00019178,2]
[326479314,1714984243058,-500.0,0.00019178,2]
[326479315,1714984243068,-500.0,0.00019178,2]
[326479316,1714984243077,-500.0,0.00019178,2]
[326479317,1714984243087,-500.0,0.00019178,2]
[326479318,1714984243096,-962.3700942,0.00019178,2]
[326479319,1714984243108,-156.3599058,0.00019178,2]
[326479320,1714984243118,-500.0,0.00019178,2]
[326479321,1714984243128,-656.96,0.00019178,2]
[326479322,1714984243139,-504.89371157,0.00019178,2]
[326479323,1714984243148,-675.82,0.00019178,2]
[326479324,1714984243158,-500.0,0.00019178,2]
[326479325,1714984243168,-500.0,0.00019178,2]
[326479326,1714984243177,-500.0,0.00019178,2]
[326479327,1714984243187,-500.0,0.00019178,2]
[326479328,1714984243196,-500.0,0.00019178,2]
[326479329,1714984243205,-500.0,0.00019178,2]
[326479330,1714984243215,-500.0,0.00019178,2]
[326479331,1714984243224,-500.0,0.00019178,2]
[326479332,1714984243234,-500.0,0.00019178,2]
[326479333,1714984243243,-500.0,0.00019178,2]
[326479334,1714984243252,-265.65784586,0.00019178,2]
[326479335,1714984243261,-500.0,0.00019178,2]
[326479336,1714984243270,-654.99,0.00019178,2]
[326479337,1714984243280,-500.0,0.00019178,2]